[Event "*** Titled Tuesday Blitz"]
[Site "Chess.com"]
[Date "2020.11.10"]
[Round "2"]
[White "Sergienko_Sergey"]
[Black "Rakhimzhan_Alen"]
[Result "0-1"]
[WhiteElo "2289"]
[BlackElo "2634"]
[TimeControl "180+1"]
[EndTime "10:20:57 PST"]
[Termination "Rakhimzhan_Alen won on time"]

1. e4 {[%clk 0:02:59]} 1... e5 {[%clk 0:03:00]} 2. Nf3 {[%clk 0:02:58.2]} 2...
Nc6 {[%clk 0:02:57.6]} 3. Bb5 {[%clk 0:02:57.7]} 3... Nf6 {[%clk 0:02:57.2]} 4.
d3 {[%clk 0:02:56.2]} 4... Bc5 {[%clk 0:02:56.7]} 5. Bxc6 {[%clk 0:02:55.5]}
5... dxc6 {[%clk 0:02:56.6]} 6. Nbd2 {[%clk 0:02:55.2]} 6... Nd7 {[%clk
0:02:55.5]} 7. Nc4 {[%clk 0:02:53.3]} 7... Qe7 {[%clk 0:02:54.2]} 8. Be3 {[%clk
0:02:47.8]} 8... f6 {[%clk 0:02:48.9]} 9. O-O {[%clk 0:02:43.5]} 9... Nf8 {[%clk
0:02:44.3]} 10. Bxc5 {[%clk 0:02:42]} 10... Qxc5 {[%clk 0:02:44]} 11. Ne3 {[%clk
0:02:32.8]} 11... Ne6 {[%clk 0:02:36.8]} 12. Nf5 {[%clk 0:02:30]} 12... g6
{[%clk 0:02:30.8]} 13. d4 {[%clk 0:02:09.2]} 13... exd4 {[%clk 0:01:59]} 14.
N5xd4 {[%clk 0:02:08.4]} 14... Nxd4 {[%clk 0:01:51.8]} 15. Qxd4 {[%clk
0:02:08.3]} 15... Qxd4 {[%clk 0:01:51.4]} 16. Nxd4 {[%clk 0:02:08.3]} 16... Bd7
{[%clk 0:01:48.5]} 17. Rfd1 {[%clk 0:01:58.3]} 17... c5 {[%clk 0:01:37.1]} 18.
Ne2 {[%clk 0:01:49.5]} 18... Bc6 {[%clk 0:01:22.9]} 19. f3 {[%clk 0:01:47.2]}
19... Ke7 {[%clk 0:01:22.7]} 20. Kf2 {[%clk 0:01:44.3]} 20... a5 {[%clk
0:01:22.3]} 21. Nc3 {[%clk 0:01:29.9]} 21... Rhd8 {[%clk 0:01:17.6]} 22. a4
{[%clk 0:01:11.6]} 22... Rd4 {[%clk 0:01:03.4]} 23. Ke3 {[%clk 0:00:54]} 23...
Rad8 {[%clk 0:00:56.2]} 24. Rd3 {[%clk 0:00:51.8]} 24... Rxd3+ {[%clk
0:00:46.5]} 25. cxd3 {[%clk 0:00:51.2]} 25... Rd4 {[%clk 0:00:47.1]} 26. b3
{[%clk 0:00:43.2]} 26... Rb4 {[%clk 0:00:44.9]} 27. Rb1 {[%clk 0:00:37.9]} 27...
b6 {[%clk 0:00:40.2]} 28. Na2 {[%clk 0:00:32.5]} 28... Rd4 {[%clk 0:00:38.8]}
29. Nc3 {[%clk 0:00:32.4]} 29... h5 {[%clk 0:00:35.8]} 30. Na2 {[%clk
0:00:26.1]} 30... Bb7 {[%clk 0:00:28.6]} 31. Rc1 {[%clk 0:00:24.5]} 31... Ba6
{[%clk 0:00:27.5]} 32. Rc3 {[%clk 0:00:24.1]} 32... c6 {[%clk 0:00:24.8]} 33.
Nc1 {[%clk 0:00:22.7]} 33... Rd8 {[%clk 0:00:19.6]} 34. Ne2 {[%clk 0:00:20.5]}
34... g5 {[%clk 0:00:19.6]} 35. h3 {[%clk 0:00:17.8]} 35... h4 {[%clk
0:00:19.8]} 36. Nc1 {[%clk 0:00:16.7]} 36... Kd6 {[%clk 0:00:19.2]} 37. Ne2
{[%clk 0:00:16.5]} 37... Rb8 {[%clk 0:00:18.9]} 38. Nc1 {[%clk 0:00:13.4]} 38...
b5 {[%clk 0:00:18.4]} 39. d4 {[%clk 0:00:11]} 39... cxd4+ {[%clk 0:00:14.2]} 40.
Kxd4 {[%clk 0:00:10.7]} 40... bxa4 {[%clk 0:00:14.3]} 41. bxa4 {[%clk 0:00:10]}
41... Rb4+ {[%clk 0:00:14.5]} 42. Ke3 {[%clk 0:00:09.8]} 42... Rxa4 {[%clk
0:00:14.8]} 43. Nb3 {[%clk 0:00:08.8]} 43... Ra3 {[%clk 0:00:14.8]} 44. Kd4
{[%clk 0:00:05.5]} 44... a4 {[%clk 0:00:11.2]} 45. Nd2 {[%clk 0:00:04]} 45...
Rxc3 {[%clk 0:00:10.7]} 46. Kxc3 {[%clk 0:00:04]} 46... Kc5 {[%clk 0:00:11.2]}
47. e5 {[%clk 0:00:02.6]} 47... f5 {[%clk 0:00:10.5]} 48. e6 {[%clk 0:00:01.9]}
48... Kd6 {[%clk 0:00:10.8]} 49. Kb4 {[%clk 0:00:01.4]} 49... Bb5 {[%clk
0:00:10.7]} 0-1

[Event "*** Titled Tuesday Blitz"]
[Site "Chess.com"]
[Date "2020.11.10"]
[Round "2"]
[White "Annawel"]
[Black "denispopov"]
[Result "1-0"]
[WhiteElo "2918"]
[BlackElo "1795"]
[TimeControl "180+1"]
[EndTime "10:20:58 PST"]
[Termination "Annawel won on time"]

1. Nf3 {[%clk 0:03:00.5]} 1... Nf6 {[%clk 0:02:58.2]} 2. g3 {[%clk 0:03:01.4]}
2... g6 {[%clk 0:02:57.9]} 3. Bg2 {[%clk 0:03:02.3]} 3... Bg7 {[%clk 0:02:58.4]}
4. O-O {[%clk 0:03:03.2]} 4... O-O {[%clk 0:02:58.6]} 5. d4 {[%clk 0:03:04.1]}
5... d6 {[%clk 0:02:58.7]} 6. c4 {[%clk 0:03:04.7]} 6... c6 {[%clk 0:02:59.1]}
7. Nc3 {[%clk 0:03:05.4]} 7... Qa5 {[%clk 0:02:59.1]} 8. e4 {[%clk 0:02:59.2]}
8... Bg4 {[%clk 0:02:48.1]} 9. Be3 {[%clk 0:02:52.8]} 9... Nbd7 {[%clk
0:02:44.1]} 10. h3 {[%clk 0:02:48.5]} 10... Bxf3 {[%clk 0:02:43.6]} 11. Qxf3
{[%clk 0:02:48.5]} 11... e5 {[%clk 0:02:43.5]} 12. d5 {[%clk 0:02:48.8]} 12...
cxd5 {[%clk 0:02:40.9]} 13. cxd5 {[%clk 0:02:49.7]} 13... Rfc8 {[%clk
0:02:32.7]} 14. Rfc1 {[%clk 0:02:48.3]} 14... b5 {[%clk 0:02:30.4]} 15. a3
{[%clk 0:02:42.2]} 15... b4 {[%clk 0:02:21.9]} 16. axb4 {[%clk 0:02:40.4]} 16...
Qxb4 {[%clk 0:02:22.8]} 17. Qe2 {[%clk 0:02:39.9]} 17... Nc5 {[%clk 0:02:19.2]}
18. Nb5 {[%clk 0:02:24.8]} 18... Nb3 {[%clk 0:01:14.9]} 19. Rxc8+ {[%clk
0:01:54.1]} 19... Rxc8 {[%clk 0:01:15.8]} 20. Rxa7 {[%clk 0:01:51.5]} 20... Nxe4
{[%clk 0:01:05.8]} 21. Bxe4 {[%clk 0:01:27.1]} 21... Qxe4 {[%clk 0:01:06.7]} 22.
Nxd6 {[%clk 0:01:27.6]} 22... Qb1+ {[%clk 0:00:55.1]} 23. Kh2 {[%clk 0:01:26.6]}
23... Rf8 {[%clk 0:00:50.4]} 24. Qc4 {[%clk 0:01:13.7]} 24... Nd4 {[%clk
0:00:47]} 25. Bxd4 {[%clk 0:01:09.6]} 25... exd4 {[%clk 0:00:44.7]} 26. Ra3
{[%clk 0:00:24.7]} 26... Qxb2 {[%clk 0:00:36.1]} 27. Rf3 {[%clk 0:00:24.9]}
27... Qb8 {[%clk 0:00:36.3]} 28. Ne4 {[%clk 0:00:24.7]} 28... Qc8 {[%clk
0:00:33]} 29. Qb3 {[%clk 0:00:24.1]} 29... Qd7 {[%clk 0:00:29.4]} 30. Nc5 {[%clk
0:00:10.9]} 30... Qd6 {[%clk 0:00:25.4]} 31. Ne4 {[%clk 0:00:11.2]} 31... Qd7
{[%clk 0:00:25.3]} 32. Qc4 {[%clk 0:00:05.5]} 32... Rc8 {[%clk 0:00:20.6]} 33.
Qa6 {[%clk 0:00:05.9]} 33... Re8 {[%clk 0:00:17.5]} 34. Nd6 {[%clk 0:00:02.5]}
34... Rf8 {[%clk 0:00:17.8]} 35. Qc6 {[%clk 0:00:02]} 35... Qe7 {[%clk
0:00:16.8]} 36. Rb3 {[%clk 0:00:02.1]} 36... Qe2 {[%clk 0:00:15.2]} 37. Kg2
{[%clk 0:00:02.2]} 37... d3 {[%clk 0:00:14.2]} 38. Qc4 {[%clk 0:00:02.5]} 38...
Qe5 {[%clk 0:00:12.6]} 39. Ne4 {[%clk 0:00:02.7]} 39... Rd8 {[%clk 0:00:09.7]}
40. Rxd3 {[%clk 0:00:03]} 40... f5 {[%clk 0:00:08.2]} 41. Nd2 {[%clk 0:00:03.5]}
41... h5 {[%clk 0:00:06.2]} 42. d6+ {[%clk 0:00:03.7]} 42... Kh7 {[%clk
0:00:06]} 43. Nf3 {[%clk 0:00:04.5]} 43... Qf6 {[%clk 0:00:05.2]} 44. h4 {[%clk
0:00:05.2]} 44... Bh6 {[%clk 0:00:02.5]} 45. d7 {[%clk 0:00:05.6]} 45... Qe7
{[%clk 0:00:02.4]} 46. Qc8 {[%clk 0:00:06]} 46... Kg7 {[%clk 0:00:02]} 47. Ne5
{[%clk 0:00:06.5]} 47... Kf6 {[%clk 0:00:01.9]} 48. Nc6 {[%clk 0:00:06.8]} 48...
Rxc8 {[%clk 0:00:01.4]} 49. dxc8=Q {[%clk 0:00:07.7]} 49... Qe4+ {[%clk
0:00:01.7]} 50. Rf3 {[%clk 0:00:08.4]} 50... f4 {[%clk 0:00:01.6]} 51. Qd8+
{[%clk 0:00:07.7]} 51... Kg7 {[%clk 0:00:01.8]} 52. Qe7+ {[%clk 0:00:07.9]}
52... Qxe7 {[%clk 0:00:01.9]} 53. Nxe7 {[%clk 0:00:08.8]} 1-0

[Event "*** Titled Tuesday Blitz"]
[Site "Chess.com"]
[Date "2020.11.10"]
[Round "2"]
[White "DenLaz"]
[Black "Crazy_girl99"]
[Result "1/2-1/2"]
[WhiteElo "2760"]
[BlackElo "2536"]
[TimeControl "180+1"]
[EndTime "10:20:59 PST"]
[Termination "Game drawn by repetition"]

1. d4 {[%clk 0:03:00.3]} 1... e6 {[%clk 0:02:58.3]} 2. c4 {[%clk 0:03:00.1]}
2... b6 {[%clk 0:02:58.3]} 3. e4 {[%clk 0:02:58]} 3... Bb4+ {[%clk 0:02:56.3]}
4. Bd2 {[%clk 0:02:49.7]} 4... Bxd2+ {[%clk 0:02:55.1]} 5. Qxd2 {[%clk
0:02:50.6]} 5... d5 {[%clk 0:02:54.3]} 6. cxd5 {[%clk 0:02:47.3]} 6... exd5
{[%clk 0:02:54.2]} 7. e5 {[%clk 0:02:47.9]} 7... Ne7 {[%clk 0:02:51.9]} 8. Nc3
{[%clk 0:02:47.4]} 8... c5 {[%clk 0:02:48.8]} 9. Bb5+ {[%clk 0:02:20.6]} 9...
Bd7 {[%clk 0:02:46.4]} 10. Bxd7+ {[%clk 0:02:17.4]} 10... Qxd7 {[%clk
0:02:45.3]} 11. Nge2 {[%clk 0:02:11.6]} 11... Nbc6 {[%clk 0:02:44.8]} 12. O-O
{[%clk 0:02:10.5]} 12... O-O {[%clk 0:02:36]} 13. f4 {[%clk 0:02:07.7]} 13... f6
{[%clk 0:02:25.4]} 14. exf6 {[%clk 0:01:59.8]} 14... Rxf6 {[%clk 0:02:23.1]} 15.
Rad1 {[%clk 0:02:00.3]} 15... c4 {[%clk 0:02:15.2]} 16. Ng3 {[%clk 0:01:55.4]}
16... Raf8 {[%clk 0:02:13.2]} 17. h3 {[%clk 0:01:42.6]} 17... Qd6 {[%clk
0:02:02.6]} 18. Nce2 {[%clk 0:01:32.3]} 18... Ng6 {[%clk 0:01:53.8]} 19. Nh5
{[%clk 0:01:27.5]} 19... R6f7 {[%clk 0:01:49.1]} 20. Rf2 {[%clk 0:01:25.7]}
20... Nh4 {[%clk 0:01:45.7]} 21. Rdf1 {[%clk 0:01:12.3]} 21... Re8 {[%clk
0:01:39.9]} 22. Nhg3 {[%clk 0:01:06.8]} 22... Nb4 {[%clk 0:01:16.2]} 23. Nc1
{[%clk 0:01:02.3]} 23... Nf5 {[%clk 0:01:04.6]} 24. Nxf5 {[%clk 0:00:58.1]}
24... Rxf5 {[%clk 0:01:05.5]} 25. a3 {[%clk 0:00:55.4]} 25... Nc6 {[%clk
0:01:05.6]} 26. Ne2 {[%clk 0:00:51.1]} 26... Rf7 {[%clk 0:01:05.2]} 27. Nc3
{[%clk 0:00:49.5]} 27... a6 {[%clk 0:00:58.6]} 28. f5 {[%clk 0:00:47.3]} 28...
Rf6 {[%clk 0:00:54.4]} 29. Qf4 {[%clk 0:00:40.3]} 29... Kf7 {[%clk 0:00:34.2]}
30. Qxd6 {[%clk 0:00:30]} 30... Rxd6 {[%clk 0:00:35.1]} 31. Rd1 {[%clk
0:00:25.6]} 31... h6 {[%clk 0:00:33.4]} 32. g4 {[%clk 0:00:23.9]} 32... b5
{[%clk 0:00:33.4]} 33. Kf1 {[%clk 0:00:21.7]} 33... Re3 {[%clk 0:00:29.8]} 34.
Kg2 {[%clk 0:00:20.5]} 34... Rd8 {[%clk 0:00:25.3]} 35. Rf3 {[%clk 0:00:19.3]}
35... Rxf3 {[%clk 0:00:19]} 36. Kxf3 {[%clk 0:00:20.2]} 36... Ke7 {[%clk
0:00:19.5]} 37. h4 {[%clk 0:00:19.5]} 37... Kd6 {[%clk 0:00:19.7]} 38. Kf4
{[%clk 0:00:19.1]} 38... Re8 {[%clk 0:00:18.1]} 39. g5 {[%clk 0:00:16.1]} 39...
hxg5+ {[%clk 0:00:18.2]} 40. hxg5 {[%clk 0:00:17]} 40... Rh8 {[%clk 0:00:18.7]}
41. f6 {[%clk 0:00:09]} 41... gxf6 {[%clk 0:00:19.6]} 42. gxf6 {[%clk
0:00:09.9]} 42... Ke6 {[%clk 0:00:20]} 43. Re1+ {[%clk 0:00:09.7]} 43... Kxf6
{[%clk 0:00:19.4]} 44. Nxd5+ {[%clk 0:00:10.3]} 44... Kf7 {[%clk 0:00:20]} 45.
Rf1 {[%clk 0:00:06.6]} 45... Ke6 {[%clk 0:00:16.2]} 46. Ke4 {[%clk 0:00:06.7]}
46... Rh4+ {[%clk 0:00:14.1]} 47. Nf4+ {[%clk 0:00:07.3]} 47... Kd6 {[%clk
0:00:14.6]} 48. Rf2 {[%clk 0:00:04.6]} 48... Ne7 {[%clk 0:00:14.1]} 49. Rg2
{[%clk 0:00:03.6]} 49... a5 {[%clk 0:00:12.2]} 50. Rg5 {[%clk 0:00:03.4]} 50...
b4 {[%clk 0:00:12.1]} 51. Rxa5 {[%clk 0:00:02.8]} 51... c3 {[%clk 0:00:12.2]}
52. bxc3 {[%clk 0:00:03]} 52... bxc3 {[%clk 0:00:13.1]} 53. Ra6+ {[%clk
0:00:03.5]} 53... Kd7 {[%clk 0:00:12.5]} 54. Ra7+ {[%clk 0:00:03.9]} 54... Kd6
{[%clk 0:00:12.9]} 55. Ra6+ {[%clk 0:00:03.4]} 55... Kd7 {[%clk 0:00:13.3]} 56.
Ra7+ {[%clk 0:00:03.2]} 56... Kd8 {[%clk 0:00:13.5]} 57. Ra8+ {[%clk 0:00:03.3]}
57... Kc7 {[%clk 0:00:13.5]} 58. Ra7+ {[%clk 0:00:03.6]} 58... Kd8 {[%clk
0:00:13.4]} 59. Ra8+ {[%clk 0:00:03.8]} 59... Kd7 {[%clk 0:00:13.8]} 60. Ra7+
{[%clk 0:00:04.2]} 1/2-1/2

[Event "*** Titled Tuesday Blitz"]
[Site "Chess.com"]
[Date "2020.11.10"]
[Round "2"]
[White "Phenix2k"]
[Black "AungTZ"]
[Result "1-0"]
[WhiteElo "2391"]
[BlackElo "2101"]
[TimeControl "180+1"]
[EndTime "10:21:01 PST"]
[Termination "Phenix2k won on time"]

1. d4 {[%clk 0:02:26.2]} 1... Nf6 {[%clk 0:02:56.6]} 2. c4 {[%clk 0:02:24.2]}
2... e6 {[%clk 0:02:56.6]} 3. g3 {[%clk 0:02:24.2]} 3... d5 {[%clk 0:02:55.9]}
4. Bg2 {[%clk 0:02:23.2]} 4... Be7 {[%clk 0:02:56.4]} 5. Nf3 {[%clk 0:02:22.3]}
5... O-O {[%clk 0:02:56]} 6. O-O {[%clk 0:02:20.6]} 6... c5 {[%clk 0:02:55.7]}
7. dxc5 {[%clk 0:02:17.8]} 7... Bxc5 {[%clk 0:02:54.7]} 8. a3 {[%clk 0:02:18.2]}
8... a6 {[%clk 0:02:53]} 9. b4 {[%clk 0:02:18.1]} 9... Be7 {[%clk 0:02:47]} 10.
Bb2 {[%clk 0:02:17.1]} 10... dxc4 {[%clk 0:02:32.7]} 11. Qc2 {[%clk 0:02:10.5]}
11... h6 {[%clk 0:02:18.2]} 12. Nbd2 {[%clk 0:01:52.2]} 12... Nc6 {[%clk
0:02:01.4]} 13. Nxc4 {[%clk 0:01:50.2]} 13... b5 {[%clk 0:01:58.6]} 14. Nce5
{[%clk 0:01:45.9]} 14... Nxe5 {[%clk 0:01:55.8]} 15. Nxe5 {[%clk 0:01:46.8]}
15... Ra7 {[%clk 0:01:51.4]} 16. Rfd1 {[%clk 0:01:32.9]} 16... Qc7 {[%clk
0:01:48.4]} 17. Nc6 {[%clk 0:01:30.9]} 17... Bb7 {[%clk 0:01:48.1]} 18. Nxe7+
{[%clk 0:01:28.6]} 18... Qxe7 {[%clk 0:01:47.9]} 19. Bd4 {[%clk 0:01:09.6]}
19... Rc8 {[%clk 0:01:13.5]} 20. Qb2 {[%clk 0:00:48.6]} 20... Raa8 {[%clk
0:01:06.5]} 21. Bc5 {[%clk 0:00:46.4]} 21... Qc7 {[%clk 0:01:05.7]} 22. Rac1
{[%clk 0:00:41.8]} 22... Bxg2 {[%clk 0:01:03.4]} 23. Kxg2 {[%clk 0:00:40.4]}
23... Qb7+ {[%clk 0:01:00]} 24. f3 {[%clk 0:00:40.6]} 24... Nd5 {[%clk
0:00:53.7]} 25. e4 {[%clk 0:00:38.3]} 25... Rxc5 {[%clk 0:00:45.3]} 26. bxc5
{[%clk 0:00:35]} 26... Ne3+ {[%clk 0:00:45.1]} 27. Kg1 {[%clk 0:00:34.8]} 27...
Nxd1 {[%clk 0:00:46]} 28. Rxd1 {[%clk 0:00:35.1]} 28... Qc6 {[%clk 0:00:45.8]}
29. Qd4 {[%clk 0:00:34.6]} 29... Rc8 {[%clk 0:00:43.7]} 30. Rc1 {[%clk
0:00:34.6]} 30... a5 {[%clk 0:00:42.3]} 31. h4 {[%clk 0:00:34.2]} 31... Rb8
{[%clk 0:00:40.2]} 32. Qd6 {[%clk 0:00:31.3]} 32... Rc8 {[%clk 0:00:32.1]} 33.
Qxc6 {[%clk 0:00:28.1]} 33... Rxc6 {[%clk 0:00:31.9]} 34. Kf2 {[%clk 0:00:28.7]}
34... Kf8 {[%clk 0:00:28.9]} 35. Ke3 {[%clk 0:00:28.8]} 35... Ke7 {[%clk
0:00:29.1]} 36. Kd4 {[%clk 0:00:29.1]} 36... Kd7 {[%clk 0:00:29.3]} 37. Rb1
{[%clk 0:00:29.2]} 37... e5+ {[%clk 0:00:28.3]} 38. Kd5 {[%clk 0:00:27.5]} 38...
Rg6 {[%clk 0:00:19.7]} 39. g4 {[%clk 0:00:25.2]} 39... Rf6 {[%clk 0:00:18.5]}
40. Rb3 {[%clk 0:00:20.3]} 40... b4 {[%clk 0:00:17.1]} 41. axb4 {[%clk 0:00:20]}
41... axb4 {[%clk 0:00:17.2]} 42. Kxe5 {[%clk 0:00:20.6]} 42... Kc6 {[%clk
0:00:14.6]} 43. f4 {[%clk 0:00:19.8]} 43... Re6+ {[%clk 0:00:14]} 44. Kd4 {[%clk
0:00:19.9]} 44... Rg6 {[%clk 0:00:14.1]} 45. g5 {[%clk 0:00:19.7]} 45... hxg5
{[%clk 0:00:13.9]} 46. hxg5 {[%clk 0:00:20.6]} 46... Re6 {[%clk 0:00:14.1]} 47.
Rxb4 {[%clk 0:00:20]} 47... Re8 {[%clk 0:00:14.9]} 48. Ra4 {[%clk 0:00:20.2]}
48... Kc7 {[%clk 0:00:15.7]} 49. Ra7+ {[%clk 0:00:20]} 49... Kc6 {[%clk
0:00:15.3]} 50. Rxf7 {[%clk 0:00:20]} 50... Rd8+ {[%clk 0:00:16.2]} 51. Ke5
{[%clk 0:00:20.1]} 51... Re8+ {[%clk 0:00:16.2]} 52. Kf5 {[%clk 0:00:20.5]}
52... g6+ {[%clk 0:00:15.3]} 53. Kxg6 {[%clk 0:00:20.3]} 53... Rxe4 {[%clk
0:00:15.5]} 54. f5 {[%clk 0:00:20]} 54... Kxc5 {[%clk 0:00:15.7]} 55. f6 {[%clk
0:00:18.3]} 1-0

[Event "*** Titled Tuesday Blitz"]
[Site "Chess.com"]
[Date "2020.11.10"]
[Round "2"]
[White "amintabatabaei"]
[Black "Pavlov_Sergey"]
[Result "0-1"]
[WhiteElo "2922"]
[BlackElo "2612"]
[TimeControl "180+1"]
[EndTime "10:21:07 PST"]
[Termination "Pavlov_Sergey won on time"]

1. g3 {[%clk 0:03:00.9]} 1... d5 {[%clk 0:02:40.6]} 2. Bg2 {[%clk 0:03:00.5]}
2... g6 {[%clk 0:02:39.7]} 3. Nf3 {[%clk 0:02:55]} 3... Bg7 {[%clk 0:02:39.2]}
4. O-O {[%clk 0:02:55.9]} 4... e5 {[%clk 0:02:39]} 5. d3 {[%clk 0:02:53.4]} 5...
Ne7 {[%clk 0:02:39.2]} 6. e4 {[%clk 0:02:53.1]} 6... O-O {[%clk 0:02:39.4]} 7.
exd5 {[%clk 0:02:53.1]} 7... Nxd5 {[%clk 0:02:38.2]} 8. Nc3 {[%clk 0:02:53.8]}
8... Nxc3 {[%clk 0:02:27.6]} 9. bxc3 {[%clk 0:02:54.7]} 9... e4 {[%clk
0:02:27.7]} 10. dxe4 {[%clk 0:02:55.6]} 10... Bxc3 {[%clk 0:02:22.5]} 11. Rb1
{[%clk 0:02:33.7]} 11... b6 {[%clk 0:02:11]} 12. Bf4 {[%clk 0:02:11.6]} 12...
Qe7 {[%clk 0:01:55.9]} 13. Qd5 {[%clk 0:02:02.2]} 13... c6 {[%clk 0:01:51.8]}
14. Qd6 {[%clk 0:01:57.6]} 14... Qxd6 {[%clk 0:01:42.5]} 15. Bxd6 {[%clk
0:01:58.5]} 15... Rd8 {[%clk 0:01:36]} 16. e5 {[%clk 0:01:57.9]} 16... Be6
{[%clk 0:01:24]} 17. a4 {[%clk 0:00:59.4]} 17... Bc4 {[%clk 0:01:09.5]} 18. Rfd1
{[%clk 0:00:55.4]} 18... Be2 {[%clk 0:01:09.5]} 19. Rdc1 {[%clk 0:00:43.2]}
19... Nd7 {[%clk 0:01:07.7]} 20. Rb3 {[%clk 0:00:41]} 20... Bxf3 {[%clk
0:00:58.1]} 21. Rxc3 {[%clk 0:00:36.7]} 21... Bxg2 {[%clk 0:00:57.7]} 22. Kxg2
{[%clk 0:00:37.6]} 22... c5 {[%clk 0:00:57.6]} 23. f4 {[%clk 0:00:37.6]} 23...
f6 {[%clk 0:00:46.8]} 24. e6 {[%clk 0:00:29.8]} 24... Nf8 {[%clk 0:00:46]} 25.
Be7 {[%clk 0:00:18.1]} 25... Rd2+ {[%clk 0:00:45.2]} 26. Kh3 {[%clk 0:00:18.8]}
26... Kg7 {[%clk 0:00:39.1]} 27. Re3 {[%clk 0:00:18.2]} 27... Re8 {[%clk
0:00:37]} 28. Bxf8+ {[%clk 0:00:18.7]} 28... Kxf8 {[%clk 0:00:37.2]} 29. a5
{[%clk 0:00:19]} 29... Rd6 {[%clk 0:00:31.9]} 30. Rce1 {[%clk 0:00:19.6]} 30...
bxa5 {[%clk 0:00:29.2]} 31. g4 {[%clk 0:00:20.2]} 31... Ke7 {[%clk 0:00:21.9]}
32. f5 {[%clk 0:00:19.1]} 32... gxf5 {[%clk 0:00:21.6]} 33. gxf5 {[%clk
0:00:20]} 33... Rd5 {[%clk 0:00:21.8]} 34. Rf3 {[%clk 0:00:15]} 34... a4 {[%clk
0:00:21.4]} 35. Ra1 {[%clk 0:00:14.3]} 35... Rd4 {[%clk 0:00:21.3]} 36. Rg1
{[%clk 0:00:15]} 36... Kd6 {[%clk 0:00:15.5]} 37. Rg7 {[%clk 0:00:15.7]} 37...
Re7 {[%clk 0:00:15.8]} 38. Rg8 {[%clk 0:00:16.4]} 38... Ke5 {[%clk 0:00:15.3]}
39. Rc8 {[%clk 0:00:15.9]} 39... Ke4 {[%clk 0:00:14.3]} 40. Rf2 {[%clk 0:00:13]}
40... Rc4 {[%clk 0:00:14.5]} 41. Rd8 {[%clk 0:00:08.5]} 41... a3 {[%clk
0:00:12.9]} 42. c3 {[%clk 0:00:09]} 42... Rxc3+ {[%clk 0:00:11.9]} 43. Kh4
{[%clk 0:00:09.7]} 43... Rb3 {[%clk 0:00:11.9]} 44. Rd1 {[%clk 0:00:04.7]} 44...
Rb2 {[%clk 0:00:11.5]} 45. Rff1 {[%clk 0:00:05.2]} 45... a2 {[%clk 0:00:10.6]}
46. Kg4 {[%clk 0:00:03.8]} 46... Rg7+ {[%clk 0:00:08.5]} 47. Kh3 {[%clk
0:00:04.2]} 47... Rb3+ {[%clk 0:00:08.1]} 48. Kh4 {[%clk 0:00:04]} 48... Rb2
{[%clk 0:00:08.7]} 49. h3 {[%clk 0:00:02.5]} 49... Rb1 {[%clk 0:00:06.5]} 50.
Rxb1 {[%clk 0:00:02.2]} 50... axb1=Q {[%clk 0:00:06.2]} 51. Rxb1 {[%clk
0:00:03.1]} 51... Kxf5 {[%clk 0:00:06.1]} 0-1